Workbook

Sheet List1
Q2: Vyplň zelená pole!!! | T2: Vyplň žlutá pole!!!
B3: Cena podkladu | D3: 89.86 | G3: Cena Call | I3: Strike | K3: Cena Put | Q3: Vstup | T3: Scénář
B4: Entry datum | D4: 2020-05-19 | G4: =CallCena($D$3,I4,$D$14,$D$7,$D$6,$D$8) -> 7.124938293 | H4: ITM | I4: =I5-$D$11 -> 85 | J4: OTM | K4: =PutCena($D$3,I4,$D$14,$D$7,$D$6,$D$8) -> 2.228850066 | Q4: Vstup dne | R4: 2020-05-19 | T4: Výstup dne | U4: 2020-05-19
B5: Exit datum | D5: 2020-06-19 | G5: =CallCena($D$3,I5,$D$14,$D$7,$D$6,$D$8) -> 6.487662746 | H5: ITM | I5: 86 | J5: OTM | K5: =PutCena($D$3,I5,$D$14,$D$7,$D$6,$D$8) -> 2.591149951 | Q5: Expirace | R5: 2020-06-19
B6: Volatilita | D6: 0.417 | G6: 5.886792052 | H6: ITM | I6: 87 | J6: OTM | K6: 2.989854689 | Q6: Dividenda | R6: 0
B7: Úroky | D7: 0.005 | G7: 5.322796739 | H7: ITM | I7: 88 | J7: OTM | K7: 3.425434809 | Q7: Úroky | R7: 0.005
B8: Dividenda | D8: 0 | G8: 4.795817687 | H8: ITM | I8: =I9-$D$11 -> 89 | J8: OTM | K8: 3.89803119
G9: 4.305673488 | H9: ATM | I9: =ROUND(D3,0) -> 90 | J9: ATM | K9: 4.407462424 | Q9: Aktuální Cena | R9: 89.86 | T9: Cena | U9: 89.86
B10: Strike | D10: 91 | G10: 3.851875735 | H10: OTM | I10: =I9+$D$11 -> 91 | J10: ITM | K10: 4.953240103 | Q10: Implied Volatility | R10: 0.417 | T10: Implied Volatility | U10: 0.417
B11: Krok Strike | D11: 1 | G11: 3.433651164 | H11: OTM | I11: =I10+$D$11 -> 92 | J11: ITM | K11: 5.534590965
G12: 3.049969398 | H12: OTM | I12: 93 | J12: ITM | K12: 6.150484632 | Q12: Call | S12: cntr | T12: Strike
B13: Do expirace (dny) | D13: =D5-D4 -> 31 | G13: 2.699574913 | H13: OTM | I13: 94 | J13: ITM | K13: 6.799665579 | Q13: 89 | R13: =CallCena($R$9,Q13,($R$5-$R$4)/365,$R$7,$R$10,$R$6) -> 4.795817687 | S13: 1 | T13: =Q13 -> 89 | U13: =CallCena($U$9,T13,($R$5-$U$4)/365,$R$7,$U$10,$R$6) -> 4.795817687
B14: Život opce (roční) | D14: =(D5-D4)/365 -> 0.08493150685 | G14: 2.381021833 | H14: OTM | I14: 95 | J14: ITM | K14: 7.480687932 | Q14: 94 | R14: =CallCena($R$9,Q14,($R$5-$R$4)/365,$R$7,$R$10,$R$6) -> 2.699574913 | S14: -2 | T14: =Q14 -> 94 | U14: =CallCena($U$9,T14,($R$5-$U$4)/365,$R$7,$U$10,$R$6) -> 2.699574913
G15: 2.092710199 | H15: OTM | I15: =I14+$D$11 -> 96 | J15: ITM | K15: 8.19195173 | Q15: 99 | R15: =CallCena($R$9,Q15,($R$5-$R$4)/365,$R$7,$R$10,$R$6) -> 1.391671716 | S15: 1 | T15: =Q15 -> 99 | U15: =CallCena($U$9,T15,($R$5-$U$4)/365,$R$7,$U$10,$R$6) -> 1.391671716
Q16: Put
B17: =CallCena(CenaPodkladu, Strike, ZivotOpce, Uroky, Volatilita, Dividenda) | Q17: 89 | R17: =PutCena($R$9,Q17,($R$5-$R$4)/365,$R$7,$R$10,$R$6) -> 3.89803119 | S17: 0 | T17: =Q17 -> 89 | U17: =PutCena($U$9,T17,($R$5-$U$4)/365,$R$7,$U$10,$R$6) -> 3.89803119
B18: =CallCena(D3,D10,D14,D7,D6,D8) -> 3.851875735 | C18: =CallCena(D3;D10;D13;D7;D6;D8) | Q18: 94 | R18: =PutCena($R$9,Q18,($R$5-$R$4)/365,$R$7,$R$10,$R$6) -> 6.799665579 | S18: 0 | T18: =Q18 -> 94 | U18: =PutCena($U$9,T18,($R$5-$U$4)/365,$R$7,$U$10,$R$6) -> 6.799665579
Q19: 99 | R19: =PutCena($R$9,Q19,($R$5-$R$4)/365,$R$7,$R$10,$R$6) -> 10.48963955 | S19: 0 | T19: =Q19 -> 99 | U19: =PutCena($U$9,T19,($R$5-$U$4)/365,$R$7,$U$10,$R$6) -> 10.48963955
B20: =PutCena(CenaPodkladu, Strike, ZivotOpce, Uroky, Volatilita, Dividenda)
B21: =PutCena(D3,D10,D14,D7,D6,D8) -> 4.953240103 | C21: =PutCena(D3;D10;D13;D7;D6;D8) | Q21: Teoretický vstup | R21: =(((S13*R13)+(S14*R14)+(S15*R15))*-100) +(((S17*R17)+(S18*R18)+(S19*R19))*-100) -> -78.83395773 | T21: Teoretický výstup | U21: =(((U13*S13)+(U14*S14)+(U15*S15))*100)+(((U17*S17)+(U18*S18)+(U19*S19))*100) -> 78.83395773 | V21: P/L | W21: =(R21+U21) -> 0
Q22: Reálný vstup | R22: -114.8 | T22: Reálný výstup | V22: P/L | W22: =(R22+U21) -> -35.96604227
B23: =DeltaCall(CenaPodkladu, Strike, ZivotOpce, Uroky, Volatilita, Dividenda)
B24: =DeltaCall(D3,D10,D14,D7,D6,D8) -> 0.4842546449 | C24: =DeltaCall(D3;D10;D14;D7;D6;D8)
B26: =DeltaPut(CenaPodkladu, Strike, ZivotOpce, Uroky, Volatilita, Dividenda)
B27: =DeltaPut(D3,D10,D14,D7,D6,D8) -> -0.5157453551 | C27: =DeltaPut(D3;D10;D14;D7;D6;D8)
B29: =GammaOpce(CenaPodkladu, Strike, ZivotOpce, Uroky, Volatilita, Dividenda)
B30: =GammaOpce(D3,D10,D14,D7,D6,D8) -> 0.03650352085 | C30: =GammaOpce(D3;D10;D14;D7;D6;D8)
B32: =ThetaCall(CenaPodkladu, Strike, ZivotOpce, Uroky, Volatilita, Dividenda)
B33: =ThetaCall(D3,D10,D14,D7,D6,D8) -> -0.07075621961 | C33: =ThetaCall(D3;D10;D14;D7;D6;D8)
B35: =ThetaPut(CenaPodkladu, Strike, ZivotOpce, Uroky, Volatilita, Dividenda)
B36: =ThetaPut(D3,D10,D14,D7,D6,D8) -> -0.06951017352 | C36: =ThetaPut(D3;D10;D14;D7;D6;D8)
B38: =VegaOpce(CenaPodkladu, Strike, ZivotOpce, Uroky, Volatilita, Dividenda)
B39: =VegaOpce(D3,D10,D14,D7,D6,D8) -> 0.1043932619 | C39: =VegaOpce(D3;D10;D14;D7;D6;D8)
